bitfinex/quotes_BTCUSD_20210402
["timestamp","ask_amount","ask_price","bid_price","bid_amount"]
[1617339896890,5.49077638,59604.0,59603.0,0.22772407]
[1617339897289,5.74077638,59604.0,59603.0,0.22772407]
[1617339897492,6.14377638,59604.0,59603.0,0.22772407]
[1617339897691,5.98077638,59604.0,59603.0,2.407e-05]
[1617339897891,5.98077638,59604.0,59602.0,0.0002]
[1617339898102,5.98077638,59604.0,59601.0,0.0002]
[1617339898103,1.31983512,59603.0,59590.0,0.03]
[1617339898293,0.389107,59601.0,59590.0,0.03]
[1617339898490,1.117107,59599.0,59590.0,0.53344]
[1617339898693,0.126001,59593.0,59590.0,0.53344]
[1617339898895,1.167107,59591.0,59590.0,0.53344]
[1617339899090,1.33556523,59591.0,59590.0,0.53344]
[1617339899320,1.6689691,59591.0,59590.0,0.53344]
[1617339899515,1.27705074,59591.0,59590.0,0.53344]
[1617339899716,1.6689691,59591.0,59590.0,0.53344]
[1617339899916,1.27705074,59591.0,59590.0,0.53344]
[1617339900316,1.6689691,59591.0,59590.0,0.53344]
[1617339900716,2.0049711,59591.0,59590.0,0.53344]
[1617339901118,2.02248768,59591.0,59590.0,0.53344]
[1617339901321,1.59248768,59591.0,59590.0,0.53344]
[1617339901520,0.47746032,59591.0,59590.0,0.908555]
[1617339901944,0.10251658,59591.0,59590.0,0.908555]
[1617339902137,0.05251658,59591.0,59590.0,0.908555]
[1617339902340,0.035,59591.0,59590.0,0.748555]
[1617339904761,0.035,59591.0,59590.0,0.53344]
[1617339904962,0.035,59591.0,59590.0,0.748555]
[1617339905278,0.035,59591.0,59590.0,0.904555]
[1617339905877,0.30196,59595.0,59591.0,0.135]
[1617339905878,0.09330201,59594.0,59591.0,0.135]
[1617339906081,0.42506404,59594.0,59593.0,0.03]
[1617339906279,0.42506404,59594.0,59593.0,0.53344]
[1617339906478,2.40000778,59594.0,59593.0,0.53344]
[1617339907081,2.60205074,59594.0,59593.0,0.53344]
[1617339907307,1.35205074,59594.0,59593.0,0.53315153]
[1617339907508,0.79705074,59594.0,59593.0,0.53344]
[1617339907911,0.42506408,59594.0,59593.0,0.748555]
[1617339908116,0.42506408,59594.0,59593.0,0.53344]
[1617339908509,0.422107,59594.0,59593.0,0.53344]
[1617339908712,0.035,59594.0,59593.0,0.53344]
[1617339909308,0.00295705,59595.0,59594.0,0.1839]
[1617339909509,0.00295705,59595.0,59594.0,0.71734]
[1617339909717,0.00295705,59596.0,59594.0,0.71734]
[1617339909922,0.00295705,59596.0,59595.0,0.03]
[1617339910122,0.00295705,59596.0,59595.0,0.53344]
[1617339910327,0.035,59598.0,59597.0,0.03]
[1617339910524,0.772107,59598.0,59597.0,0.53344]
[1617339910723,0.84705074,59598.0,59597.0,0.53344]
[1617339910923,2.42710701,59598.0,59597.0,0.53344]
[1617339911124,2.80205075,59598.0,59597.0,0.53344]
[1617339911323,3.19396911,59598.0,59597.0,0.53344]
[1617339911523,2.80205075,59598.0,59597.0,0.53344]
[1617339911723,3.05400375,59598.0,59597.0,0.53344]
[1617339912123,3.44592211,59598.0,59597.0,0.53344]
[1617339912736,3.05400375,59598.0,59597.0,0.53344]
[1617339913133,3.44592211,59598.0,59597.0,0.53344]
[1617339913338,3.44592211,59598.0,59597.0,0.50344]
[1617339913539,3.05400375,59598.0,59597.0,0.50344]
[1617339913738,3.21700375,59598.0,59597.0,0.50344]
[1617339914137,3.23451803,59598.0,59597.0,0.50344]
[1617339914342,3.23451803,59598.0,59597.0,0.53344]
[1617339914738,3.07151803,59598.0,59597.0,0.53344]
[1617339916571,2.76956503,59598.0,59597.0,0.748555]
[1617339916769,0.81456502,59598.0,59597.0,1.171675]
[1617339916970,0.05251428,59598.0,59597.0,1.558782]
[1617339917170,0.01751428,59598.0,59597.0,1.343667]
[1617339917368,0.05251428,59598.0,59597.0,1.653667]
[1617339917572,0.11143528,59598.0,59597.0,1.26656]
[1617339917815,0.05251428,59598.0,59597.0,1.26656]
[1617339918018,0.11143502,59598.0,59597.0,0.95656]
[1617339918216,0.49854202,59598.0,59597.0,0.53344]
[1617339918416,0.54854202,59598.0,59597.0,0.53344]
[1617339918616,0.74354202,59598.0,59597.0,0.53344]
[1617339919218,0.69354202,59598.0,59597.0,0.53344]
[1617339920464,1.06848576,59598.0,59597.0,0.53344]
[1617339920668,1.28048576,59598.0,59597.0,0.53344]
[1617339920871,1.28048576,59598.0,59597.0,0.50344]
[1617339921063,1.11848576,59598.0,59597.0,0.50344]
[1617339921463,3.16848577,59598.0,59597.0,0.50344]
[1617339921664,3.32902963,59598.0,59597.0,0.50344]
[1617339921866,3.66499563,59598.0,59597.0,0.50344]
[1617339922266,3.31499563,59598.0,59597.0,0.50344]
[1617339922465,3.90528211,59598.0,59597.0,0.50344]
[1617339923094,3.88776783,59598.0,59597.0,0.53344]
[1617339923292,4.04776783,59598.0,59597.0,0.53344]
[1617339925294,4.04776783,59598.0,59597.0,0.50344]
[1617339926725,4.04776783,59598.0,59597.0,0.49844]
[1617339927524,4.29776783,59598.0,59597.0,0.49844]
[1617339928349,4.64776783,59598.0,59597.0,0.49844]
[1617339928548,4.29276783,59598.0,59597.0,0.49844]
[1617339929158,4.53276783,59598.0,59597.0,0.49844]
[1617339929351,5.43293098,59598.0,59597.0,0.49844]
[1617339929751,5.27468619,59598.0,59597.0,0.49844]
[1617339930156,5.57468619,59598.0,59597.0,0.49844]
[1617339930752,5.73293249,59598.0,59597.0,0.49844]
[1617339930963,4.92468619,59598.0,59597.0,0.49844]
[1617339931364,5.27468619,59598.0,59597.0,0.49844]
[1617339932563,3.57468618,59598.0,59597.0,0.49844]
[1617339933365,3.91985142,59598.0,59597.0,0.49844]
[1617339933591,4.07485142,59598.0,59597.0,0.49844]
[1617339934594,3.72968618,59598.0,59597.0,0.49844]
[1617339934793,3.91985142,59598.0,59597.0,0.49844]
[1617339935458,2.59276782,59598.0,59597.0,0.49844]
[1617339935658,2.29276782,59598.0,59597.0,0.49844]
[1617339935857,2.68468618,59598.0,59597.0,0.49844]
[1617339936057,2.29276782,59598.0,59597.0,0.49844]
[1617339936258,3.33468618,59598.0,59597.0,0.49844]
[1617339936861,3.19968618,59598.0,59597.0,0.49844]
[1617339937054,3.54485142,59598.0,59597.0,0.49844]
[1617339937257,4.00300359,59598.0,59597.0,0.49844]
[1617339937457,4.04031777,59598.0,59597.0,0.49844]
[1617339937659,3.99515253,59598.0,59597.0,0.49844]
[1617339937856,3.60323417,59598.0,59597.0,0.49844]
[1617339938056,3.99515253,59598.0,59597.0,0.49844]
[1617339938456,3.79283835,59598.0,59597.0,0.49844]
[1617339938661,3.99552976,59598.0,59597.0,0.49844]
[1617339939056,4.340695,59598.0,59597.0,0.49844]
[1617339939656,4.47206052,59598.0,59597.0,0.49844]
[1617339940255,4.71206052,59598.0,59597.0,0.49844]
[1617339940455,4.36689528,59598.0,59597.0,0.49844]
[1617339940862,5.69994552,59598.0,59597.0,0.45514198]
[1617339941060,4.71690835,59598.0,59597.0,0.45514198]
[1617339941259,4.63554283,59598.0,59597.0,0.45514198]
[1617339941474,4.68554283,59598.0,59597.0,0.45514198]
[1617339941673,4.68554283,59598.0,59597.0,0.37965788]
[1617339942073,4.52254283,59598.0,59597.0,0.37965788]
[1617339943877,4.22254283,59598.0,59597.0,0.37965788]
[1617339945504,3.83062447,59598.0,59597.0,0.37965788]
[1617339945704,4.22254283,59598.0,59597.0,0.37965788]
[1617339945900,4.24006023,59598.0,59597.0,0.36213796]
[1617339946305,4.54006023,59598.0,59597.0,0.36213796]
[1617339947325,4.54006023,59598.0,59597.0,0.35681396]
[1617339948925,4.54006023,59598.0,59597.0,0.34098171]
[1617339950397,4.54006023,59598.0,59597.0,0.20703843]
[1617339951398,4.39801678,59598.0,59597.0,0.18996207]
[1617339952196,4.24006023,59598.0,59597.0,0.18996207]
[1617339953403,0.387107,59593.0,59588.0,0.0002]
[1617339953602,0.387107,59589.0,59588.0,0.0002]
[1617339953801,0.422107,59589.0,59588.0,0.0002]
[1617339954002,0.422107,59589.0,59588.0,0.50346]
[1617339954003,1.56882733,59589.0,59588.0,0.50346]
[1617339954199,2.10172625,59589.0,59588.0,0.50346]
[1617339954400,2.97172625,59589.0,59588.0,0.50346]
[1617339954605,3.22172625,59589.0,59588.0,0.50346]
[1617339955803,3.22172625,59589.0,59588.0,0.49567232]
[1617339957006,2.87172625,59589.0,59588.0,0.49567232]
[1617339959032,2.87172625,59589.0,59588.0,0.52567232]
[1617339959233,2.87172625,59589.0,59588.0,0.49567232]
[1617339960463,2.52656101,59589.0,59588.0,0.49567232]
[1617339961266,2.13464265,59589.0,59588.0,0.49567232]
[1617339962270,2.13464265,59589.0,59588.0,0.52567232]
[1617339962878,2.13464265,59589.0,59588.0,0.49567232]
[1617339963079,1.64464265,59589.0,59588.0,0.49567232]
[1617339963481,1.64464265,59589.0,59588.0,0.91596232]
[1617339963880,1.64464265,59589.0,59588.0,0.94596232]
[1617339964083,1.48168747,59589.0,59588.0,0.94596232]
[1617339964281,1.6455702,59589.0,59588.0,0.94596232]
[1617339964477,1.48168747,59589.0,59588.0,0.94596232]
[1617339964678,1.64556976,59589.0,59588.0,0.94596232]
[1617339965127,1.48168747,59589.0,59588.0,0.94596232]
[1617339965555,1.83168747,59589.0,59588.0,0.94096232]
[1617339965755,1.64545729,59589.0,59588.0,0.94096232]
[1617339965954,1.48168747,59589.0,59588.0,0.94096232]
[1617339966253,1.64544245,59589.0,59588.0,0.94096232]
[1617339966456,1.48168747,59589.0,59588.0,0.94096232]
[1617339966655,1.6454485,59589.0,59588.0,0.94096232]
[1617339966863,1.73371047,59589.0,59588.0,0.94096232]
[1617339967256,1.31747225,59589.0,59588.0,0.94096232]
[1617339967463,1.15371047,59589.0,59588.0,0.52067232]
[1617339968855,1.41371047,59589.0,59588.0,0.52067232]
[1617339970064,1.41371047,59589.0,59588.0,0.49067232]
[1617339971062,2.05562883,59589.0,59588.0,0.49067232]
[1617339971262,1.82710758,59589.0,59588.0,0.49067232]
[1617339971660,1.60407374,59589.0,59588.0,0.49067232]
[1617339972266,1.45407374,59589.0,59588.0,0.49067232]
[1617339972465,2.25937598,59589.0,59588.0,0.49067232]
[1617339972883,2.15937598,59589.0,59588.0,0.49067232]
[1617339973484,1.76745762,59589.0,59588.0,0.49067232]
[1617339974286,1.86745762,59589.0,59588.0,0.49067232]
[1617339974485,2.25937598,59589.0,59588.0,0.49067232]
[1617339974888,2.15937598,59589.0,59588.0,0.49067232]
[1617339975289,2.39937598,59589.0,59588.0,0.49067232]
[1617339977311,2.00745762,59589.0,59588.0,0.49067232]
[1617339977515,2.0249757,59589.0,59588.0,0.49067232]
[1617339979329,1.9249757,59589.0,59588.0,0.49067232]
[1617339979729,2.2749757,59589.0,59588.0,0.49067232]
[1617339981403,2.66689406,59589.0,59588.0,0.49067232]
[1617339981601,2.25745762,59589.0,59588.0,0.49067232]
[1617339982202,3.36145762,59589.0,59588.0,0.49067232]
[1617339982602,3.70662286,59589.0,59588.0,0.49067232]
[1617339982802,4.09854122,59589.0,59588.0,0.49067232]
[1617339983001,4.30480169,59589.0,59588.0,0.49067232]
[1617339983207,3.91288333,59589.0,59588.0,0.49067232]
[1617339983403,3.56771809,59589.0,59588.0,0.49067232]
[1617339983601,3.70662286,59589.0,59588.0,0.49067232]
[1617339984002,3.91325236,59589.0,59588.0,0.49067232]
[1617339984204,4.30517072,59589.0,59588.0,0.49067232]
[1617339985004,4.30517072,59589.0,59588.0,0.49045232]
[1617339985809,4.30517072,59589.0,59588.0,0.48266448]
[1617339986410,4.06000548,59589.0,59588.0,0.48266448]
[1617339986609,4.30517072,59589.0,59588.0,0.48266448]
[1617339987409,4.40517072,59589.0,59588.0,0.48266448]
[1617339987810,4.30517072,59589.0,59588.0,0.48266448]
[1617339988212,4.32268992,59589.0,59588.0,0.48266448]
[1617339988415,4.42268992,59589.0,59588.0,0.48266448]
[1617339989233,4.32268992,59589.0,59588.0,0.48266448]
[1617339989832,3.93077156,59589.0,59588.0,0.48266448]
[1617339990037,3.58560632,59589.0,59588.0,0.48266448]
[1617339990235,3.97752468,59589.0,59588.0,0.48266448]
[1617339990435,4.13752468,59589.0,59588.0,0.48266448]
[1617339991553,4.23752468,59589.0,59588.0,0.48266448]
[1617339991753,4.00160632,59589.0,59588.0,0.48266448]
[1617339991957,5.17840968,59589.0,59588.0,0.48266448]
[1617339992161,5.17840968,59589.0,59588.0,0.06808448]
[1617339992162,5.09833132,59589.0,59588.0,0.06808448]
[1617339992357,5.09833132,59589.0,59588.0,0.00808448]
[1617339992358,6.49024968,59589.0,59588.0,0.00808448]
[1617339992559,1.84680336,59588.0,59580.0,0.37691648]
[1617339992760,0.75177446,59581.0,59580.0,0.37691648]
[1617339992962,0.75177446,59581.0,59580.0,0.04071648]
[1617339992963,3.16610063,59581.0,59580.0,0.04071648]
[1617339993154,4.0907917,59581.0,59580.0,0.04071648]
[1617339993361,4.74291967,59581.0,59568.0,0.00042]
[1617339993561,0.09267675,59567.0,59562.0,0.89004515]
[1617339993760,0.035,59566.0,59562.0,0.89004515]
[1617339993994,1.40000001,59564.0,59562.0,0.89004515]
[1617339994194,0.422107,59563.0,59562.0,0.89004515]
[1617339994398,0.91756596,59563.0,59562.0,0.89004515]
[1617339994593,1.9727312,59563.0,59562.0,0.89004515]
[1617339994993,1.9727312,59563.0,59562.0,0.88504515]
[1617339995645,1.62756596,59563.0,59562.0,0.88504515]
[1617339996247,1.86756596,59563.0,59562.0,0.88504515]
[1617339997249,2.11756596,59563.0,59562.0,0.88504515]
[1617339997845,2.97156596,59563.0,59562.0,0.88504515]
[1617339998647,3.22156596,59563.0,59562.0,0.88504515]
[1617339999244,3.3267312,59563.0,59562.0,0.88504515]
[1617339999644,3.0767312,59563.0,59562.0,0.88504515]
[1617339999849,2.73156596,59563.0,59562.0,0.88504515]
[1617340000649,3.3267312,59563.0,59562.0,0.88504515]
[1617340001049,3.26275495,59563.0,59562.0,0.88504515]
[1617340001246,2.8979691,59563.0,59562.0,0.88504515]
[1617340001444,2.49605074,59563.0,59562.0,0.88504515]
[1617340001861,2.8879691,59563.0,59562.0,0.88504515]
[1617340002064,2.90758969,59563.0,59562.0,0.88504515]
[1617340002261,2.51567133,59563.0,59562.0,0.88504515]
[1617340002463,3.25275493,59563.0,59562.0,0.88504515]
[1617340003666,2.86083657,59563.0,59562.0,0.88504515]
[1617340004275,2.84121598,59563.0,59562.0,0.88504515]
[1617340004894,2.51568,59563.0,59562.0,0.88504515]
[1617340005092,2.49605074,59563.0,59562.0,0.91504515]
[1617340005888,2.8879691,59563.0,59562.0,0.91504515]
[1617340006092,2.49605074,59563.0,59562.0,0.91504515]
[1617340006691,2.48605074,59563.0,59562.0,0.91504515]
[1617340006892,2.8779691,59563.0,59562.0,0.91504515]
[1617340007111,2.88091399,59563.0,59562.0,0.91504515]
[1617340007312,2.8779691,59563.0,59562.0,0.91504515]
[1617340007512,2.88091392,59563.0,59562.0,0.91504515]
[1617340007911,2.48899556,59563.0,59562.0,0.91504515]
[1617340008313,2.48899556,59563.0,59562.0,0.88504515]
[1617340008917,2.48801321,59563.0,59562.0,0.88504515]
[1617340009319,2.48605074,59563.0,59562.0,0.88504515]
[1617340009516,2.48605074,59563.0,59562.0,0.91504515]
[1617340010577,2.48801331,59563.0,59562.0,0.91504515]
[1617340010979,2.48801331,59563.0,59562.0,0.8849484]
[1617340011782,2.48605074,59563.0,59562.0,0.8849484]
[1617340012188,2.43605074,59563.0,59562.0,1.1000634]
[1617340012389,2.43605074,59563.0,59562.0,4.7337434]
[1617340012390,1.25527374,59563.0,59562.0,4.7337434]
[1617340012589,0.587,59563.0,59562.0,5.2958504]
[1617340012792,0.58994943,59563.0,59562.0,5.2958504]
[1617340012984,0.58994943,59563.0,59562.0,5.27832159]
[1617340013192,0.58798386,59563.0,59562.0,5.27832159]
[1617340013393,0.587,59563.0,59562.0,5.27832159]
[1617340013588,0.58798379,59563.0,59562.0,5.27832159]
[1617340013785,0.587,59563.0,59562.0,5.27832159]
[1617340014391,0.58995108,59563.0,59562.0,2.14832159]
[1617340014586,2.08995108,59563.0,59562.0,2.14832159]
[1617340014790,2.087,59563.0,59562.0,2.31132159]
[1617340015000,2.08798448,59563.0,59562.0,2.31132159]
[1617340015393,2.08798448,59563.0,59562.0,4.73132159]
[1617340015791,2.08798448,59563.0,59562.0,2.31132159]
[1617340015993,0.58798448,59563.0,59562.0,2.31132159]
[1617340016397,0.587,59563.0,59562.0,2.13632159]
[1617340016800,0.58896874,59563.0,59562.0,2.13632159]
[1617340016996,2.08896874,59563.0,59562.0,2.13632159]
[1617340017402,2.087,59563.0,59562.0,2.69632159]
[1617340017616,2.087,59563.0,59562.0,2.13632159]
[1617340017818,2.347,59563.0,59562.0,2.13632159]
[1617340018015,2.34896873,59563.0,59562.0,2.13632159]
[1617340018216,2.08896873,59563.0,59562.0,2.13632159]
[1617340018416,2.087,59563.0,59562.0,2.60632159]
[1617340018816,2.087,59563.0,59562.0,2.13632159]
[1617340019019,2.087,59563.0,59562.0,2.07156159]
[1617340019218,2.08896839,59563.0,59562.0,2.07156159]
[1617340019617,2.087,59563.0,59562.0,2.07156159]
[1617340021237,2.087,59563.0,59562.0,2.89156159]
[1617340021439,2.087,59563.0,59562.0,2.49422159]
[1617340021637,2.397,59563.0,59562.0,2.49422159]
[1617340021836,2.087,59563.0,59562.0,2.49400159]
[1617340022641,2.087,59563.0,59562.0,2.07134159]
[1617340025067,2.087,59563.0,59562.0,1.85622659]
[1617340025277,2.407,59563.0,59562.0,1.30611959]
[1617340025714,2.844107,59563.0,59562.0,1.30611959]
[1617340025916,2.903349,59563.0,59562.0,1.30611959]
[1617340026111,2.844107,59563.0,59562.0,1.30611959]
[1617340026910,2.844107,59563.0,59562.0,1.27611959]
[1617340027313,3.334107,59563.0,59562.0,1.27611959]
[1617340027513,3.72602536,59563.0,59562.0,1.27611959]
[1617340027910,3.334107,59563.0,59562.0,1.27111959]
[1617340028321,3.084107,59563.0,59562.0,1.27111959]
[1617340028517,3.094107,59563.0,59562.0,1.27111959]
[1617340028916,2.844107,59563.0,59562.0,1.27111959]
[1617340031349,3.094107,59563.0,59562.0,1.27111959]
[1617340031551,3.094107,59563.0,59562.0,1.26611959]
[1617340032151,3.256107,59563.0,59562.0,1.26611959]
[1617340032353,3.094107,59563.0,59562.0,1.26611959]
[1617340033156,3.47846536,59563.0,59562.0,1.26611959]
[1617340033374,3.46424536,59563.0,59562.0,1.26611959]
[1617340033772,3.46498614,59563.0,59562.0,1.26611959]
[1617340034371,3.07306778,59563.0,59562.0,1.26611959]
[1617340034770,3.46498614,59563.0,59562.0,1.26611959]
[1617340035171,3.44820614,59563.0,59562.0,1.26611959]
[1617340035371,3.44758614,59563.0,59562.0,1.26611959]
[1617340036591,3.05566778,59563.0,59562.0,1.26611959]
[1617340037790,3.44758614,59563.0,59562.0,1.26611959]
[1617340037991,3.05566778,59563.0,59562.0,1.26611959]
[1617340038624,3.44758614,59563.0,59562.0,1.26611959]
[1617340039627,3.05566778,59563.0,59562.0,1.26111959]
[1617340039824,3.44758614,59563.0,59562.0,1.26111959]
[1617340040225,3.05566778,59563.0,59562.0,1.26111959]
[1617340040425,3.44758614,59563.0,59562.0,1.26111959]
[1617340040864,3.54758614,59563.0,59562.0,1.26111959]
[1617340041069,3.15566778,59563.0,59562.0,1.26111959]
[1617340042875,3.45470218,59563.0,59562.0,1.25111959]
[1617340043272,3.60662054,59563.0,59562.0,1.25111959]
[1617340043672,3.21470218,59563.0,59562.0,1.25111959]
[1617340043871,3.60662054,59563.0,59562.0,1.24611959]
[1617340044073,3.60662054,59563.0,59562.0,1.24589959]
[1617340044870,3.21470218,59563.0,59562.0,1.24589959]
[1617340045070,3.64166209,59563.0,59562.0,1.24589959]
[1617340045473,3.24974373,59563.0,59562.0,1.24589959]
[1617340045671,3.64166209,59563.0,59562.0,1.24589959]
[1617340046275,3.24974373,59563.0,59562.0,1.24589959]
[1617340046892,3.64166209,59563.0,59562.0,1.24589959]
[1617340047295,3.58262769,59563.0,59562.0,1.24589959]
[1617340048097,3.58020769,59563.0,59562.0,1.24589959]
[1617340049119,3.54516614,59563.0,59562.0,1.24589959]
[1617340051751,3.54016614,59563.0,59562.0,1.24589959]
[1617340052757,3.64016614,59563.0,59562.0,1.24589959]
[1617340052963,3.88016614,59563.0,59562.0,1.24589959]
[1617340053159,4.59184082,59563.0,59562.0,1.24589959]
[1617340053558,4.24667558,59563.0,59562.0,1.24589959]
[1617340053975,3.21063558,59563.0,59562.0,1.24589959]
[1617340054159,3.51063558,59563.0,59562.0,1.24589959]
[1617340054376,3.14412614,59563.0,59562.0,1.24589959]
[1617340054571,3.78929138,59563.0,59562.0,1.24589959]
[1617340054773,3.99885678,59563.0,59562.0,1.24589959]
[1617340054974,3.35369154,59563.0,59562.0,1.24589959]
[1617340055172,1.64412614,59563.0,59562.0,1.24589959]
[1617340055375,3.11417638,59563.0,59562.0,0.50368]
[1617340055581,3.56141012,59563.0,59562.0,0.42813896]
[1617340055779,3.86141012,59563.0,59562.0,0.42813896]
[1617340055976,3.56141012,59563.0,59562.0,0.23009348]
[1617340056177,3.76521781,59563.0,59562.0,0.23009348]
[1617340056387,3.76521781,59563.0,59562.0,0.17928693]
[1617340056577,3.56141012,59563.0,59562.0,0.17928693]
[1617340056778,3.91141012,59563.0,59562.0,0.17928693]
[1617340057008,4.11458035,59563.0,59562.0,0.17928693]
[1617340057208,3.76941511,59563.0,59562.0,0.17928693]
[1617340057410,3.76941511,59563.0,59562.0,0.12934147]
[1617340057411,3.91941511,59563.0,59562.0,0.12934147]
[1617340057611,4.03356511,59563.0,59562.0,0.12934147]
[1617340057814,1.504885,59562.0,59559.0,0.00042]
[1617340058024,2.26477838,59560.0,59555.0,0.0004]
[1617340058220,0.16,59556.0,59550.0,0.498625]
[1617340058419,0.19850614,59551.0,59544.0,0.0002]
[1617340058621,0.19850614,59551.0,59530.0,0.00084]
[1617340058622,0.58743548,59545.0,59530.0,0.00084]
[1617340058822,0.92660536,59542.0,59530.0,0.00084]
[1617340059019,0.79490641,59538.0,59530.0,0.00084]
[1617340059219,1.97332689,59538.0,59530.0,0.00084]
[1617340059419,2.34032689,59538.0,59530.0,0.00084]
[1617340059839,3.79532689,59538.0,59537.0,0.00062]
[1617340060036,3.85405941,59538.0,59537.0,0.00062]
[1617340060241,4.17982525,59538.0,59532.0,0.00042]
[1617340060447,0.03913195,59528.0,59527.0,0.00084]
[1617340060641,1.00669883,59528.0,59527.0,0.00084]
[1617340060842,2.81885885,59528.0,59527.0,0.00084]
[1617340061038,3.18041541,59528.0,59527.0,0.00084]
[1617340061237,3.89677427,59528.0,59527.0,0.00084]
[1617340061435,3.99677427,59528.0,59527.0,0.00084]
[1617340061637,4.78165927,59528.0,59527.0,0.00084]
[1617340062039,5.28165927,59528.0,59527.0,0.00084]
[1617340062267,5.67165927,59528.0,59525.0,0.00084]
[1617340062466,2.39787752,59527.0,59525.0,0.00084]
[1617340062668,0.784885,59526.0,59512.0,0.00084]
[1617340062867,1.31186748,59525.0,59512.0,0.00084]
[1617340063066,0.387107,59520.0,59518.0,0.0004]
[1617340063274,0.387107,59515.0,59506.0,0.00064]
[1617340063469,0.40664356,59512.0,59506.0,0.00064]
[1617340063666,0.78164356,59512.0,59506.0,0.00064]
[1617340063863,0.85252908,59512.0,59506.0,0.00064]
[1617340064063,0.90252908,59512.0,59511.0,0.01606]
[1617340064269,1.28702744,59512.0,59511.0,0.00884201]
[1617340064674,1.28702744,59512.0,59506.0,0.00064]
[1617340064876,0.387107,59510.0,59506.0,0.00064]
[1617340065077,0.387107,59510.0,59503.0,0.00042]
[1617340065078,0.3471194,59508.0,59502.0,0.95868]
[1617340065276,1.40000001,59506.0,59503.0,0.217115]
[1617340065475,0.14976844,59505.0,59504.0,0.370115]
[1617340065682,0.19976844,59505.0,59504.0,0.370115]
[1617340066077,0.18976844,59505.0,59503.0,0.002]
[1617340066281,0.18976844,59505.0,59503.0,0.215115]
[1617340066676,0.44214144,59505.0,59502.0,1.173795]
[1617340066875,0.44214144,59505.0,59503.0,0.215115]
[1617340066876,0.8266398,59505.0,59503.0,0.215115]
[1617340067278,0.44214144,59505.0,59504.0,0.345]
[1617340067530,0.53687544,59505.0,59504.0,0.265115]
[1617340067723,0.14976844,59505.0,59504.0,0.295115]
[1617340067930,0.14976844,59505.0,59504.0,0.245115]
[1617340068331,0.40213144,59505.0,59504.0,0.245115]
[1617340068533,0.40213144,59505.0,59504.0,0.410115]
[1617340068534,0.14976844,59505.0,59504.0,0.410115]
[1617340068732,0.19976844,59505.0,59504.0,0.410115]
[1617340068933,0.53687544,59505.0,59504.0,0.245115]
[1617340069133,0.53687544,59505.0,59503.0,0.05]
[1617340069336,0.387107,59504.0,59502.0,0.95868]
[1617340069531,0.53687544,59503.0,59502.0,1.163795]
[1617340069726,0.50187544,59503.0,59502.0,1.667975]
[1617340069932,0.50187544,59503.0,59502.0,1.46286]
[1617340070127,1.04687544,59503.0,59502.0,1.46286]
[1617340070336,0.58687544,59503.0,59502.0,1.46286]
[1617340070807,0.91687544,59503.0,59502.0,1.46286]
[1617340072210,0.58687544,59503.0,59502.0,1.46286]
[1617340074479,0.58687544,59503.0,59502.0,1.667975]
[1617340074679,0.65476844,59503.0,59502.0,1.667975]
[1617340075281,0.19976844,59503.0,59502.0,1.697975]
[1617340075479,0.19976844,59503.0,59502.0,2.085082]
[1617340075684,0.19976844,59503.0,59502.0,1.879967]
[1617340075882,0.19976844,59503.0,59502.0,1.45786]
[1617340076283,0.19976844,59503.0,59502.0,1.662975]
[1617340076683,0.19976844,59503.0,59502.0,2.050082]
[1617340077081,0.19976844,59503.0,59502.0,2.080082]
[1617340077284,0.19976844,59503.0,59502.0,1.692975]
[1617340077485,0.19976844,59503.0,59502.0,1.45786]
[1617340078109,0.19976844,59503.0,59502.0,1.662975]
[1617340078308,0.19976844,59503.0,59502.0,1.45786]
[1617340078905,0.19976844,59503.0,59502.0,1.692975]
[1617340079105,0.19976844,59503.0,59502.0,1.48786]
[1617340080106,0.19976844,59503.0,59502.0,1.48286]
[1617340080315,0.19976844,59503.0,59502.0,2.012975]
[1617340080727,0.19976844,59503.0,59502.0,2.075082]
[1617340081333,0.14976844,59503.0,59502.0,2.125082]
[1617340081531,0.14976844,59503.0,59502.0,1.737975]
[1617340081728,0.14976844,59503.0,59502.0,1.687975]
[1617340082131,0.14976844,59503.0,59502.0,1.66786]
[1617340082334,0.14976844,59503.0,59502.0,1.45286]
[1617340082529,0.19976844,59503.0,59502.0,1.45286]
[1617340082931,0.19976844,59503.0,59502.0,1.657975]
[1617340083156,0.19976844,59503.0,59502.0,2.045082]
[1617340083554,0.19976844,59503.0,59502.0,2.230082]
[1617340083954,0.19976844,59503.0,59502.0,2.075082]
[1617340084157,0.19976844,59503.0,59502.0,1.682975]
[1617340084556,0.29976844,59503.0,59502.0,1.682975]
[1617340084754,0.19476844,59503.0,59502.0,1.47786]
[1617340084959,0.19476844,59503.0,59502.0,1.44786]
[1617340085158,0.42574384,59503.0,59502.0,1.44786]
[1617340085356,0.42476844,59503.0,59502.0,1.44786]
[1617340085556,0.42476844,59503.0,59502.0,1.44286]
[1617340086080,0.42671923,59503.0,59502.0,1.44286]
[1617340086881,0.42476844,59503.0,59502.0,1.44286]
[1617340087282,0.19476844,59503.0,59502.0,1.44286]
[1617340087689,0.78205858,59503.0,59502.0,1.44286]
[1617340088083,0.58187544,59503.0,59502.0,1.44286]
[1617340088529,0.88205858,59503.0,59502.0,1.44286]
[1617340088729,1.35705858,59503.0,59502.0,1.44286]
[1617340089125,1.5989738,59503.0,59502.0,1.44286]
[1617340089327,2.10497845,59503.0,59502.0,1.44286]
[1617340089525,2.00981321,59503.0,59502.0,1.43786]
[1617340090125,2.30981321,59503.0,59502.0,1.43786]
[1617340090324,1.92531485,59503.0,59502.0,1.43786]
[1617340090524,2.30981321,59503.0,59502.0,1.43786]
[1617340090725,1.62531485,59503.0,59502.0,1.43786]
[1617340090926,2.00981321,59503.0,59502.0,1.43786]
[1617340091141,2.31181321,59503.0,59502.0,1.43786]
[1617340091338,2.90697845,59503.0,59502.0,1.43786]
[1617340091738,2.56181321,59503.0,59502.0,1.43786]
[1617340092140,2.86181321,59503.0,59502.0,1.43786]
[1617340092336,2.56181321,59503.0,59502.0,1.43786]
[1617340092942,2.90697845,59503.0,59502.0,1.43786]
[1617340093341,3.20697845,59503.0,59502.0,1.43786]
[1617340093662,3.30697845,59503.0,59502.0,1.43786]
[1617340093859,3.30697845,59503.0,59502.0,1.23963012]
[1617340094459,3.89730639,59503.0,59502.0,0.5044]
[1617340094665,3.89730639,59503.0,59502.0,0.39277253]
[1617340094666,5.16466139,59503.0,59502.0,0.39277253]
[1617340094871,5.16466139,59503.0,59501.0,0.00814]
[1617340094872,1.25546524,59501.0,59500.0,0.43231495]
[1617340095069,1.25546524,59501.0,59466.0,0.00086]
[1617340095070,4.41289355,59501.0,59466.0,0.00086]
[1617340095270,4.41289355,59501.0,59470.0,0.16053843]